Cogmind - Beta 15 @@@ ROGUE MODE // 2025.06.09 @ 23:13:24 Player: Mas5akr Result: Destroyed by D-53 Grenadier with Mini Grenade Launcher Performance ------------- Evolutions (0) 0 Regions Visited (2) 400 Robots Destroyed (16) 80 Value Destroyed (424) 424 Prototype IDs (0) 0 Alien Tech Used (0) 0 Bonus (0) 0 TOTAL SCORE: 904 Bonus ------- None Cogmind --------- Core Integrity 0/250 Matter 291/300 Energy 160/160 System Corruption 1% Temperature Cool (0) Movement Treading (160) Location -10/Mines Parts ------- > --- POWER (1) -------- Light Nuclear Core > --- PROPULSION (2) --- Light Treads > --- UTILITY (2) ------ Small Storage Unit > --- WEAPON (2) ------- Assault Rifle Light Cannon > --- INVENTORY (8) ---- Ion Engine Beam Cannon Beam Cannon Assault Rifle Grenade Launcher Datajack Hammer Mining Claw Peak State ------------ > --- POWER ------------ Light Nuclear Core > --- PROPULSION ------- Light Treads Light Treads > --- UTILITY ---------- Small Storage Unit > --- WEAPON ----------- Assault Rifle Light Cannon > --- INVENTORY -------- Ion Engine Beam Cannon Beam Cannon Assault Rifle Grenade Launcher Datajack Hammer Mining Claw [Rating: 8] Favorites ----------- Power Ion Engine Engine Ion Engine Power Core Light Nuclear Core Propulsion Light Treads Treads Light Treads Utility Small Storage Unit Storage Small Storage Unit Weapon Small Laser Energy Gun Small Laser Ballistic Gun Assault Rifle Ballistic Cannon Light Cannon Impact Weapon Hammer Build | -11 -10 -10 ------- Run | Yrd Mat Min Slots Evolved . | . . . Power . | . . . Propulsion . | . . . Utility . | . . . Weapon . | . . . Parts Attached 14 | 6 7 1 Power 3 | 1 1 1 Engine 2 | 1 1 . Core 1 | . . 1 Reactor . | . . . Propulsion 3 | 2 1 . Treads 3 | 2 1 . Leg . | . . . Wheel . | . . . Hover . | . . . Flight . | . . . Utility 1 | 1 . . Device . | . . . Storage 1 | 1 . . Processor . | . . . Hackware . | . . . Protection . | . . . Artifact . | . . . Weapon 7 | 2 5 . Energy Gun 4 | 2 2 . Energy Cannon . | . . . Ballistic Gun 1 | . 1 . Ballistic Cannon 1 | . 1 . Launcher . | . . . Special Weapon . | . . . Impact Weapon 1 | . 1 . Slashing Weapon . | . . . Piercing Weapon . | . . . Special Melee Weapon . | . . . Unidentified Prototypes . | . . . Parts Lost 2 | . 1 1 Power . | . . . Propulsion 1 | . . 1 Utility . | . . . Weapon 1 | . 1 . Highest Loss Streak 1 | . 1 1 To Critical Strikes . | . . . Average Backups 4 | 2 4 8 Power . | . 1 1 Propulsion . | . . . Utility . | . . . Weapon 3 | 1 2 6 Tool/Special . | . . . Unused Backups 9 | . 2 7 Power 1 | . . 1 Propulsion . | . . . Utility . | . . . Weapon 7 | . 2 5 Tool/Special 1 | . . 1 Average Slot Usage (%) 84 | . 84 84 Engine 12 | . 14 1 Core 1 | . . 12 Treads 27 | . 27 27 Storage 14 | . 14 14 Energy Gun 12 | . 14 . Ballistic Gun 3 | . 1 14 Ballistic Cannon 3 | . 1 14 Impact Weapon 8 | . 9 . Peak Build Rating 8 | 6 6 8 Average Rating 6 | 3 5 7 On Entrance 4 | . 6 6 Naked Turns . | . . . Heaviest Build 15 | 13 15 15 Greatest Support 40 | 40 40 40 Greatest Overweight (x) 3 | 3 . . Average Overweight (x) . | . . . Largest Inventory Capacity 8 | 8 8 8 Average Capacity 7 | 7 8 8 Most Carried 8 | 6 8 8 Average Carried 4 | 2 4 8 Final Capacity 8 | 8 8 8 Final Carried 8 | 2 8 8 Class Distribution -------------------- 100% | Mutant Dominant Class ---------------- Mutant | -10/Materials Mutant | -10/Mines Resources | -11 -10 -10 ----------- Run | Yrd Mat Min Matter Collected 461 | 146 174 141 Remotely . | . . . Salvage Created 559 | . 413 146 Parts 24 | . 12 12 Haulers Intercepted 2 | . 2 . Recyclers Shooed . | . . . Parts Field Recycled . | . . . Retrieved Matter . | . . . Parts Self-Destructed . | . . . Prevented . | . . . Kills | -11 -10 -10 ------- Run | Yrd Mat Min Combat Hostiles Destroyed 12 | . 8 4 Melee 1 | . 1 . Guns 9 | . 6 3 Cannons 1 | . . 1 Classes Destroyed 5 | . 5 . Hauler 2 | . 2 . Operator 1 | . 1 . Watcher 1 | . 1 . Swarmer 3 | . 3 . Grunt 9 | . 5 4 Best Kill Streak 5 | . 5 2 Combat Bots Only 5 | . 5 2 Max Kills in Single Turn 1 | . 1 1 Gunslinging . | . . . Exploded . | . . . Melee 1 | . 1 . Uniques/NPCs Destroyed . | . . . Combat | -11 -10 -10 -------- Run | Yrd Mat Min Hostile Shots Fired 112 | . 76 36 Missed 24 | . 11 13 Hits 88 | . 65 23 Projectile 88 | . 65 23 AOE 6 | . . 6 Critical Strikes 2 | . 1 1 Damage Taken 1169 | . 664 505 Core 264 | . 165 99 Absorbed by Shields . | . . . Regen/Repaired (Parts) 116 | . 116 . Core Remaining (%) 100 | 100 . . Volleys Fired 47 | . 33 14 Largest 2 | . 2 2 Hottest 90 | . 90 50 Shots Fired 87 | . 59 28 Gun 73 | . 59 14 Cannon 14 | . . 14 Launcher . | . . . Special . | . . . Kinetic 28 | . . 28 Thermal 59 | . 59 . Explosive . | . . . Electromagnetic . | . . . Robot Hit Streak 10 | . 8 10 Robot Miss Streak 3 | . 3 3 Penetration Max . | . . . Secondary Targets 4 | . 4 . Max Gunslinging Chain 1 | . 1 . Shots Hit Robots 63 | . 45 18 Core Hits 26 | . 17 9 Critical Kills . | . . . Critical Parts Destroyed 3 | . 3 . Critical Strikes 5 | . 4 1 Burn 1 | . 1 . Blast 1 | . . 1 Smash 3 | . 3 . Melee Attacks 10 | . 10 . Impact 10 | . 10 . Slashing . | . . . Piercing . | . . . Sneak Attacks 1 | . 1 . Combat Hostiles . | . . . Follow-up Attacks . | . . . Damage Inflicted 892 | . 639 253 Guns 586 | . 458 128 Cannons 125 | . . 125 Explosions . | . . . Melee 181 | . 181 . Ramming . | . . . Kinetic 253 | . . 253 Thermal 458 | . 458 . Explosive . | . . . Electromagnetic . | . . . Impact 181 | . 181 . Slashing . | . . . Piercing . | . . . Highest Corruption 1 | . 1 1 Average Corruption 1 | . 1 1 Corruption Purged . | . . . Corruption Blocked . | . . . Effects 3 | . 1 2 Message Errors 1 | . 1 . Matter Fused 1 | . . 1 Data Loss (minor) 1 | . . 1 Overload Shots . | . . . Overflow Damage 83 | . 83 . Projectiles . | . . . Explosions . | . . . Melee 83 | . 83 . Knockbacks 1 | . . 1 Impact . | . . . Kinetic 1 | . . 1 Secondary . | . . . Self-Inflicted Damage . | . . . Shots . | . . . Rammed 1 | . . 1 Targets Rammed 1 | . . 1 Kicked . | . . . Crushed . | . . . Highest Temperature 394 | . 394 45 Average Temperature 143 | . 168 16 Received Heat Transfer 351 | . 249 102 Effects 2 | . 2 . Shutdowns 1 | . 1 . Short Circuit 1 | . 1 . Siege Activations . | . . . Martial Activations . | . . . Shielding Activations . | . . . Robots Disrupted . | . . . Combat Hostiles . | . . . Robots Corrupted 2 | . 2 . Combat Hostiles . | . . . Parts Fried 2 | . 2 . Impact Corruptions 3 | . 3 . Robots Melted 1 | . 1 . Combat Hostiles 1 | . 1 . Parts Melted 8 | . 8 . Heat Transferred 1253 | . 1253 . Parts Sabotaged . | . . . Parts Stolen . | . . . Parts Stripped . | . . . Power Chain Reactions . | . . . Alert | -11 -10 -10 ------- Run | Yrd Mat Min Maximum Alert Level . | . . . Low Security (%) 100 | 100 100 100 Level 1 . | . . . Level 2 . | . . . Level 3 . | . . . Level 4 . | . . . Level 5 . | . . . High Security . | . . . Max Security . | . . . Peak Influence 120 | . 120 60 Initial . | . . . Average 28 | . 29 34 Influence Increases 341 | . 241 100 Destroy 0b10 Robot/C 240 | . 160 80 Destroy 0b10 Robot/NC 20 | . 20 . Destroy Leader 66 | . 46 20 Partial Spotted 15 | . 15 . Influence Decreases 331 | . 241 90 Time Decay 311 | . 231 80 Lost Part 20 | . 10 10 Squads Dispatched 1 | . 1 . Investigation . | . . . Extermination . | . . . Reinforcement 1 | . 1 . Assault . | . . . Garrison . | . . . Intercept . | . . . Searches Triggered . | . . . Construction Impeded . | . . . Haulers Reinforced . | . . . Active Scanning Responses . | . . . Cargo Convoy Interrupts . | . . . Stealth | -11 -10 -10 --------- Run | Yrd Mat Min Distress Signals 1 | . 1 . Communications Jammed . | . . . Distress Signals . | . . . Times Spotted 37 | . 20 17 Peak Tracking Total 14 | . 5 14 Tactical Retreats 2 | . . 2 Traps | -11 -10 -10 ------- Run | Yrd Mat Min Traps Triggered 2 | . 2 . Indirectly . | . . . Trap Hack Attempts . | . . . Triggered . | . . . Disarmed . | . . . Reprogrammed . | . . . Reused . | . . . Traps Extracted . | . . . Installed . | . . . Triggered . | . . . Machines | -11 -10 -10 ---------- Run | Yrd Mat Min Machines Disabled . | . . . Max in Single Turn . | . . . Machines Repaired . | . . . Machines Dismantled . | . . . Machines Sabotaged . | . . . Overloaded Fab Kills . | . . . Hacking | -11 -10 -10 --------- Run | Yrd Mat Min Machines Accessed 4 | . 4 . Terminals 3 | . 3 . Fabricators . | . . . Repair Stations 1 | . 1 . Recycling Units . | . . . Scanalyzers . | . . . Garrison Access . | . . . Total Hacks 9 | . 9 . Successful 2 | . 2 . Failed 7 | . 7 . Catastrophic 2 | . 2 . Database Lockouts . | . . . Manual 7 | . 7 . Terminals 7 | . 7 . Fabricators . | . . . Repair Stations 2 | . 2 . Recycling Units . | . . . Scanalyzers . | . . . Garrison Access . | . . . Terminal Hacks . | . . . Fabricator Hacks . | . . . Repair Station Hacks 2 | . 2 . Scan Component 1 | . 1 . Repair 1 | . 1 . Recycling Unit Hacks . | . . . Scanalyzer . | . . . Garrison Access Hacks . | . . . Unauthorized Hacks . | . . . Terminals . | . . . Fabricators . | . . . Repair Stations . | . . . Recycling Units . | . . . Scanalyzers . | . . . Garrison Access . | . . . Data Cores Recovered . | . . . Used . | . . . Hacking Detections 4 | . 4 . Full Trace Events . | . . . Feedback Events . | . . . Feedback Blocked . | . . . Robot Schematics Acquired . | . . . Robots Built . | . . . Authchips . | . . . Time . | . . . Total Robot Build Rating . | . . . Part Schematics Acquired . | . . . Parts Built . | . . . Authchips . | . . . Time . | . . . Total Part Build Rating . | . . . Parts Repaired 1 | . 1 . Time 26 | . 26 . Parts Recycled . | . . . Recycled Matter . | . . . Retrieved Matter . | . . . Retrieved Components . | . . . Parts Scanalyzed . | . . . Part Schematics Acquired . | . . . Parts Damaged . | . . . Bothacking | -11 -10 -10 ------------ Run | Yrd Mat Min Used RIF Installer . | . . . Robots Hacked . | . . . Non-combat . | . . . Combat . | . . . Robot Hacks Applied . | . . . Relay Couplers Released . | . . . Fabnet Peak Effective % . | . . . Robots Rewired . | . . . Allies Hacked . | . . . Hacks Repelled . | . . . Allies | -11 -10 -10 -------- Run | Yrd Mat Min Total Allies . | . . . Largest Group . | . . . Highest-Rated Group . | . . . Highest-Rated Ally . | . . . Total Orders . | . . . Ally Attacks . | . . . Total Damage . | . . . Kills . | . . . Allies Corrupted . | . . . Allies Melted . | . . . Intel | -11 -10 -10 ------- Run | Yrd Mat Min Active Infowar (turns) . | . . . Robot Analysis Total . | . . . Derelict Logs Recovered . | . . . Drone Launches . | . . . Drone Recoveries . | . . . Exploration | -11 -10 -10 ------------- Run | Yrd Mat Min Turns Passed 1250 | 58 1021 171 Spaces Moved 630 | 40 525 65 Core 20 | 20 . . Treads 610 | 20 525 65 Legs . | . . . Wheels . | . . . Hover . | . . . Flight . | . . . Fastest Speed 50 | 50 160 160 Average Speed 157 | 115 160 160 Slowest Speed 200 | 200 160 160 Overloaded Moves . | . . . Propulsion Burnouts . | . . . Robots Hopped . | . . . Potential Cave-ins . | . . . Cave-ins Triggered . | . . . Exploration Rate (%) 35 | 5 85 15 Regions Visited 2 Branch Regions 1 Pre-discovered Areas . | . . . Known Exits Taken . | . . . Unknown Exits Taken 2 | 1 1 . Scrap Searched . | . . . Spaces Dug . | . . . Terrain Destroyed . | . . . Melee . | . . . Projectile . | . . . AOE . | . . . Terrain Rammed . | . . . Walls Destroyed . | . . . Machines Disabled . | . . . Actions | -11 -10 -10 --------- Run | Yrd Mat Min Total 784 | 51 629 104 Wait 53 | . 31 22 Move 628 | 39 524 65 Hop . | . . . Pick Up 20 | 6 14 . Fast Attach 5 | 2 3 . Attach 6 | 4 2 . Detach . | . . . Swap 6 | . 5 1 Drop 8 | . 7 1 Fire 47 | . 33 14 Melee 10 | . 10 . Ram . | . . . Kick . | . . . Crush 1 | . . 1 Escape Stasis . | . . . Rewire . | . . . Trap . | . . . Miscellaneous . | . . . Route ------- -11/Scrapyard -10/Materials (discovered 5 exits: [*Mat x2] / [*Min x2] / [*Sub]) -10/Mines History --------- Turn | Location | Event 10 | -11/Scrapyard | Discovered new exit (range 14) 59 | -11/Scrapyard | Entered Materials 98 | -10/Materials | Discovered new exit (range 7) 245 | -10/Materials | Core integrity fell below 50% 303 | -10/Materials | Build established: Mutant 351 | -10/Materials | Discovered new exit (range 16) 505 | -10/Materials | Repaired Lgt. Treads 739 | -10/Materials | Discovered new exit (range 15) 908 | -10/Materials | Discovered new exit (range 15) 1062 | -10/Materials | Discovered new exit (range 9) 1080 | -10/Materials | Entered Mines 1202 | -10/Mines | Assembled infested the area 1207 | -10/Mines | Assisted by a Guerilla fighting off Assembled 1241 | -10/Mines | Core integrity fell below 20% 1251 | -10/Mines | Destroyed by D-53 Grenadier with Mini Grenade Launcher Last Messages --------------- Acquired 3 matter. R-06 Scavenger collects Aluminum Leg. R-06 Scavenger collects Ion Engine. Slammed into R-06 Scavenger. K-01 Serf collects debris. ALERT: Infestation in the mines, dispatching Demolisher response squad. A derelict emerges from the shadows: "You need to get out of here! I've been tracking a group of Assembled to figure out where they're coming from, and they're closing on this area, come on!" K-01 Serf collects debris. System corrupted: Component data lost. as-85973 knocked back. C-30 ARC bursts open, deploying its payload. D-53 Grenadier unfolds itself. as-85973 destroyed. as-45270 destroyed. Lgt. Treads destroyed. Map ----- +----------------------------------------------------+ | ???????????????????????????????????????? | | ???????????????????????????????????????? | | ???????????????????????????????????????? | | ???????????????????????????????????????? | | ???????????????????????????????????????? | | ???????????????????????????????????????? | | ???????????????????????????????????????? | | ???????????????????????????????????????? | | ???????????????????????????????????????? | | ???????????????????????????????????????? | | ?????????????????????##????????????????? | | ????????????????????? #???a#??????????? | | ????????????????????? "#??# #??????????? | | ?????????????????????#%#??# #??????????? | | ?????????????????????# #?## ####???????? | | ?????????????????????#t#?# a #???????? | | ?????????????????????# #?#a"""a#???????? | | ?????????????????????#d#?# """ #???????? | | ????????????????????## ## """ #???????? | | ????????????????????# d #???????? | | ???????????????????## a #???????? | | ???????????????????# ##???????? | | ???????????????????# #????????? | | ???????????????????# ###??????? | | ???????????????????## ##?????? | | ????????????????????## @ #?????? | | ?????????????????????# ##????? | | ???????????????# ?? ; ####?? | | ???????????????# ## ## #?? | | ??????????????# t g #? | | ??????????????# #? | | ??????????????# ######## ### ##? | | ?????????????# ?????????# #??# ##?? | | ????????????? ??????????#%#??? #??? | | ????????????? ???????????#!#???? #??? | | ?????????????? ??????????###!#### #??? | | ??????????????????????????# *= #??? | | ??????????????????????????# #########??? | | ??????????????????????????# #??????????? | | ??????????????????????????# #??????????? | | ?????????????????????????## #######????? | | ?????????????????????????# #????? | | ?????????????????????????# #????? | | ?????????????????????????# #????? | | ?????????????????????????# """#????? | | ?????????????????????????# *=="""#????? | | ?????????????????????????# %*"""#????? | | ?????????????????????????# [!!% #????? | | ?????????????????????????##########????? | | ???????????????????????????????????????? | +----------------------------------------------------+ Best States ------------- Heat Dissipation 25 Energy Generation 14 Energy Capacity 250 Matter Stores 300 Matter Capacity 300 Sight Range 16 Terrain Scan Density 10 Evasion (%) 50 Recoil Reduction 2 Item Schematics ----------------- None Robot Schematics ------------------ None Fabricated ------------ Nothing Repaired ---------- Lgt. Treads | 17% | -10/Materials Alien Tech Used ----------------- None Achievements -------------- None Challenges ------------ None Game ------ Seed ResetAngularRipper Manual? 0 Play Time 00:08:15 Cumulative 59.3 hours Start 2025.06.09 @ 23:05:46 End 2025.06.09 @ 23:13:24 Sessions 1 Manual Loads 0 Difficulty Rogue Special Mode None Game No. 56 Rogue 56 Adventurer 0 Explorer 0 Win Type - Total 1 Types 1/0/0/0/0/0/0/0/0/0 Lore% 44 Gallery% 42 Achievement% 43 Wizard Run 0 Options --------- Layout 1 ASCII 0 Keyboard 0 Movement Mouse Keybinds 0 Fullscreen 2 Font 24/Smallcaps Map View 50x35 Zoom Use 0% Tactical HUD 0 Map Filters NONE Filters NONE Steam 1 RUN: cf5b0b3d-a1c7-43bf-9be7-056739dd28d9